lending/lending_fUSD_20250920
["ID","MTS","AMOUNT","RATE_DAILY","PERIOD"]
[386572893,1758405032980,-666.0,0.00021315,4]
[386572894,1758405032991,-1387.20657822,0.00021315,4]
[386572895,1758405033003,-964.06434895,0.00021315,4]
[386572896,1758405033022,-14021.12301501,0.00021315,4]
[386572897,1758405033032,-5000.0,0.0002135,4]
[386572898,1758405033041,-151.0,0.00021356,2]
[386572899,1758405033051,-5000.0,0.00021356,4]
[386572900,1758405033060,-25000.0,0.00021359,4]
[386572901,1758405033070,-300.0,0.00021403,2]
[386572902,1758405033080,-325.74,0.00021479,4]
[386572903,1758405033090,-3876.41698126,0.00021505,4]
[386572904,1758405033101,-1123.58301874,0.00021505,4]
[386572905,1758405033110,-1261.0,0.0002152,2]
[386572906,1758405033121,-1178.0,0.0002152,2]
[386572907,1758405033130,-4229.0,0.0002152,2]
[386572908,1758405033140,-898.0,0.0002152,2]
[386572909,1758405033151,-4174.0,0.0002152,2]
[386572910,1758405033163,-18883.0,0.0002152,2]
[386572911,1758405033173,-5000.0,0.00021524,4]
[386572912,1758405033183,-5000.0,0.00021528,4]
[386572913,1758405033192,-2445.55,0.00021542,4]
[386572914,1758405033202,-5456.09889691,0.00021574,2]
[386572915,1758405033211,-170.8,0.00021585,2]
[386572916,1758405033221,-5000.0,0.00021599,4]
[386572917,1758405033231,-1970.0,0.00021621,4]
[386572918,1758405033241,-5000.0,0.00021632,4]
[386572919,1758405033250,-5000.0,0.00021673,4]
[386572920,1758405033260,-5000.0,0.00021704,4]
[386572921,1758405033270,-500.0,0.00021704,2]
[386572922,1758405033280,-1847.27,0.00021716,4]
[386572923,1758405033289,-11495.64908059,0.00021721,2]
[386572924,1758405033298,-2454.65,0.00021742,4]
[386572925,1758405033308,-2939.39,0.00021759,4]
[386572926,1758405033318,-1000.0,0.00021773,2]
[386572927,1758405033328,-2514.63,0.00021779,4]
[386572928,1758405033337,-25000.0,0.00021786,4]
[386572929,1758405033347,-910.41,0.00021788,4]
[386572930,1758405033357,-1199.66,0.00021821,4]
[386572931,1758405033366,-170.8,0.00021895,2]
[386572932,1758405033376,-5000.0,0.00021897,4]
[386572933,1758405033386,-2000.0,0.000219,2]
[386572934,1758405033396,-2000.0,0.000219,2]
[386572935,1758405033406,-232.77,0.00021905,4]
[386572936,1758405033416,-163.76306668,0.00021915,2]
[386572937,1758405033427,-5000.0,0.00021918,2]
[386572938,1758405033437,-1476.25659917,0.00021947,2]
[386572952,1758405038367,-327.13118913,0.0002152,2]
[386572961,1758405039542,-399.86881087,0.0002152,2]
[386572962,1758405039552,-24.23848136,0.00021947,2]
[386572963,1758405039563,-738.512065,0.00021947,2]
[386572964,1758405039605,-800.0,0.00021947,2]
[386572965,1758405039616,-841.69220006,0.00021947,2]
[386572966,1758405039667,-788.50317115,0.00021947,2]
[386572967,1758405039786,-786.89638017,0.00021947,2]
[386572968,1758405039796,-17482.47,0.00021958,4]
[386572969,1758405039805,-2101.8,0.00021969,4]
[386572970,1758405039815,-500.0,0.00021978,5]
[386572971,1758405039825,-5000.0,0.00021984,4]
[386572972,1758405039836,-2105.46,0.00021998,4]
[386572973,1758405039847,-1392.87,0.00022,2]
[386572974,1758405039856,-600.0,0.0002211,2]
[386572975,1758405039866,-11495.64908059,0.00022148,2]
[386572976,1758405039875,-170.8,0.00022204,2]
[386572977,1758405039884,-500.0,0.00022252,5]
[386572978,1758405039893,-5456.09889691,0.0002232,2]
[386572979,1758405039903,-312.6534,0.000224,2]
[386572980,1758405039912,-170.8,0.00022513,2]
[386572981,1758405039921,-500.0,0.00022526,5]
[386572982,1758405039931,-163.76306668,0.00022528,2]
[386572983,1758405039940,-1000.0,0.0002256,2]
[386572984,1758405039949,-151.0,0.00022572,7]
[386572985,1758405039958,-220.682,0.00022573,2]
[386572986,1758405039968,-11495.64908059,0.00022575,2]
[386572987,1758405039977,-151.0,0.00022575,7]
[386572988,1758405039987,-151.0,0.00022575,7]
[386572989,1758405039996,-151.0,0.00022575,7]
[386572990,1758405040005,-151.0,0.00022575,7]
[386572991,1758405040015,-151.0,0.00022575,7]
[386572992,1758405040024,-151.0,0.00022575,7]
[386572993,1758405040034,-163.73531,0.00022575,7]
[386572994,1758405040044,-163.73531,0.00022575,7]
[386572995,1758405040054,-151.0,0.00022575,7]
[386572996,1758405040063,-163.73531,0.00022575,7]
[386572997,1758405040073,-151.0,0.00022575,7]
[386572998,1758405040082,-163.73531,0.00022575,7]
[386572999,1758405040091,-151.0,0.00022575,7]
[386573000,1758405040100,-151.0,0.00022575,7]
[386573001,1758405040109,-201.618048,0.00022575,7]
[386573002,1758405040119,-1816.652634,0.00022575,7]
[386573003,1758405040128,-151.0,0.00022575,7]
[386573004,1758405040137,-1816.652634,0.00022575,7]
[386573005,1758405040146,-1816.652634,0.00022575,7]
[386573006,1758405040155,-1816.652634,0.00022575,7]
[386573007,1758405040164,-924.364775,0.00022575,7]
[386573008,1758405040173,-168.509792,0.00022575,7]
[386573009,1758405040182,-924.364775,0.00022575,7]
[386573010,1758405040192,-168.509792,0.00022575,7]
[386573011,1758405040201,-924.364775,0.00022575,7]
[386573012,1758405040210,-168.509792,0.00022575,7]
[386573013,1758405040219,-924.364775,0.00022575,7]
[386573014,1758405040228,-168.509792,0.00022575,7]
[386573015,1758405040237,-151.0,0.00022575,7]
[386573016,1758405040246,-151.0,0.00022575,7]
[386573017,1758405040255,-328.279368,0.00022575,7]
[386573018,1758405040265,-328.279368,0.00022575,7]
[386573019,1758405040274,-328.279368,0.00022575,7]
[386573020,1758405040283,-328.279368,0.00022575,7]
[386573021,1758405040293,-151.0,0.00022575,7]
[386573022,1758405040302,-151.0,0.00022575,7]
[386573023,1758405040312,-151.0,0.00022575,7]
[386573024,1758405040322,-1196.206096,0.00022575,7]
[386573025,1758405040331,-151.0,0.00022575,7]
[386573026,1758405040340,-1196.206096,0.00022575,7]
[386573027,1758405040350,-151.0,0.00022575,7]
[386573028,1758405040359,-1196.206096,0.00022575,7]
[386573030,1758405040368,-204.157142,0.00022575,7]
[386573032,1758405040378,-204.157142,0.00022575,7]
[386573034,1758405040387,-1196.206096,0.00022575,7]
[386573035,1758405040396,-204.157142,0.00022575,7]
[386573036,1758405040405,-204.157142,0.00022575,7]
[386573037,1758405040414,-151.0,0.00022575,7]
[386573038,1758405040423,-400.0,0.00022618,2]
[386573039,1758405040433,-500.0,0.00022618,2]
[386573040,1758405040443,-600.0,0.00022658,2]
[386573041,1758405040452,-5456.09889691,0.00022693,2]
[386573042,1758405040462,-500.0,0.000228,5]
[386573043,1758405040471,-170.8,0.00022822,2]
[386573044,1758405040481,-600.0,0.000229,8]
[386573045,1758405040490,-3019.62027748,0.00023,2]
[386573046,1758405040500,-160.0,0.00023,2]
[386573047,1758405040510,-11495.64908059,0.00023002,2]
[386573048,1758405040519,-5456.09889691,0.00023066,2]
[386573049,1758405040528,-500.0,0.00023074,5]
[386573050,1758405040538,-587.0,0.00023092,2]
[386573051,1758405040547,-351.25,0.00023092,2]
[386573052,1758405040556,-150.0,0.00023125,2]
[386573053,1758405040566,-170.8,0.00023131,2]
[386573054,1758405040576,-163.76306668,0.0002314,2]
[386573055,1758405040585,-600.0,0.00023206,2]
[386573056,1758405040595,-12000.0,0.00023288,7]
[386573057,1758405040604,-200.0,0.00023288,2]
[386573058,1758405040613,-444.0,0.00023288,2]
[386573059,1758405040623,-150.0,0.00023288,2]
[386573060,1758405040632,-228.12251272,0.00023288,2]
[386573061,1758405040641,-151.0,0.00023288,7]
[386573062,1758405040650,-151.0,0.00023288,7]
[386573063,1758405040659,-151.0,0.00023288,7]
[386573064,1758405040668,-151.0,0.00023288,7]
[386573065,1758405040677,-637.0,0.00023288,2]
[386573066,1758405040686,-151.0,0.00023288,7]
[386573067,1758405040696,-151.0,0.00023288,7]
[386573068,1758405040705,-155.596521,0.00023288,7]
[386573069,1758405040714,-155.596521,0.00023288,7]
[386573070,1758405040724,-155.596521,0.00023288,7]
[386573071,1758405040734,-151.0,0.00023288,7]
[386573072,1758405040743,-151.0,0.00023288,7]
[386573073,1758405040752,-155.596521,0.00023288,7]
[386573074,1758405040761,-151.0,0.00023288,7]
[386573075,1758405040770,-151.0,0.00023288,7]
[386573076,1758405040780,-151.0,0.00023288,7]
[386573077,1758405040789,-151.0,0.00023288,7]
[386573078,1758405040798,-151.0,0.00023288,7]
[386573079,1758405040807,-151.0,0.00023288,7]
[386573080,1758405040816,-252.705559,0.00023288,7]
[386573081,1758405040826,-252.705559,0.00023288,7]
[386573082,1758405040835,-252.705559,0.00023288,7]
[386573083,1758405040844,-252.705559,0.00023288,7]
[386573084,1758405040853,-200.0,0.00023288,2]
[386573085,1758405040863,-500.0,0.00023288,2]
[386573086,1758405040871,-474.0,0.00023288,2]
[386573087,1758405040881,-1626.0,0.00023288,2]
[386573088,1758405040890,-500.0,0.00023288,2]
[386573089,1758405040899,-250.0,0.00023288,2]
[386573090,1758405040908,-150.0,0.00023288,2]
[386573091,1758405040918,-2351.0,0.00023316,2]
[386573092,1758405040927,-2000.0,0.0002332,2]
[386573093,1758405040936,-150.0,0.0002332,2]
[386573094,1758405040945,-257.12550501,0.00023321,2]
[386573095,1758405040954,-2000.0,0.00023323,2]
[386573096,1758405040964,-2000.0,0.00023323,2]
[386573097,1758405040973,-151.0,0.00023323,7]
[386573098,1758405040983,-151.0,0.00023323,7]
[386573099,1758405040992,-151.0,0.00023323,7]
[386573100,1758405041002,-151.0,0.00023323,7]
[386573101,1758405041011,-151.0,0.00023323,7]
[386573102,1758405041020,-163.856954,0.00023323,7]
[386573103,1758405041029,-151.0,0.00023323,7]
[386573104,1758405041039,-151.0,0.00023323,7]
[386573105,1758405041048,-165.612956,0.00023323,7]
[386573106,1758405041057,-151.0,0.00023323,7]
[386573107,1758405041066,-151.0,0.00023323,7]
[386573108,1758405041076,-151.0,0.00023323,7]
[386573109,1758405041085,-151.0,0.00023323,7]
[386573110,1758405041094,-151.0,0.00023323,7]
[386573111,1758405041104,-151.0,0.00023323,7]
[386573112,1758405041113,-151.0,0.00023323,7]
[386573113,1758405041122,-327.70897698,0.00023323,2]
[386573114,1758405041131,-398.29244894,0.00023324,2]
[386573115,1758405041141,-468.87592091,0.00023326,2]
[386573116,1758405041150,-539.45939287,0.00023327,2]
[386573117,1758405041163,-610.04286484,0.00023329,2]
[386573118,1758405041173,-680.6263368,0.0002333,2]
[386573119,1758405041410,-751.20980877,0.00023332,2]
[386573120,1758405041437,-821.79328073,0.00023333,2]
[386573121,1758405041446,-151.0,0.0002334,7]
[386573122,1758405041456,-108338.1586325,0.00023343,2]
[386573123,1758405041466,-3259.7680129,0.00023343,2]
[386573124,1758405041475,-2070.7393246,0.00023343,2]
[386573125,1758405041485,-870.995738,0.00023343,2]
[386573126,1758405041494,-165.7661095,0.00023343,2]
[386573127,1758405041504,-13073.84528576,0.00023343,2]
[386573128,1758405041518,-36656.64722424,0.00023343,2]
[386573129,1758405041528,-21530.0444563,0.00023343,2]
[386573130,1758405041538,-4532.8156884,0.00023343,2]
[386573131,1758405041547,-151.0,0.00023343,7]
[386573132,1758405041557,-181.252178,0.00023343,7]
[386573133,1758405041566,-2933.8737833,0.00023343,2]
[386573134,1758405041575,-181.252178,0.00023343,7]
[386573135,1758405041585,-181.252178,0.00023343,7]
[386573136,1758405041595,-181.252178,0.00023343,7]
[386573137,1758405041605,-151.0,0.00023343,7]
[386573138,1758405041615,-200.262289,0.00023343,7]
[386573139,1758405041625,-151.0,0.00023343,7]
[386573140,1758405041634,-151.0,0.00023343,7]
[386573141,1758405041644,-151.0,0.00023343,7]
[386573142,1758405041655,-151.0,0.00023343,7]
[386573143,1758405041665,-151.0,0.00023343,7]
[386573144,1758405041675,-151.0,0.00023343,7]
[386573145,1758405041685,-151.0,0.00023343,7]
[386573146,1758405041695,-151.0,0.00023343,7]
[386573147,1758405041705,-217.997669,0.00023343,7]
[386573148,1758405041714,-151.0,0.00023343,7]
[386573149,1758405041723,-151.0,0.00023343,7]
[386573150,1758405041732,-151.0,0.00023343,7]
[386573151,1758405041741,-151.0,0.00023343,7]
[386573152,1758405041751,-190.423903,0.00023343,7]
[386573153,1758405041760,-151.0,0.00023343,7]
[386573154,1758405041769,-151.0,0.00023343,7]
[386573155,1758405041778,-151.0,0.00023343,7]
[386573156,1758405041788,-151.0,0.00023343,7]
[386573157,1758405041797,-151.0,0.00023343,7]
[386573158,1758405041807,-151.0,0.00023343,7]
[386573159,1758405041816,-151.0,0.00023343,7]
[386573160,1758405041826,-270.88921,0.00023343,7]
[386573161,1758405041835,-151.0,0.00023343,7]
[386573162,1758405041844,-151.0,0.00023343,7]
[386573163,1758405041856,-151.0,0.00023343,7]
[386573164,1758405041865,-151.0,0.00023343,7]
[386573165,1758405041874,-151.0,0.00023343,7]
[386573166,1758405041884,-151.0,0.00023343,7]
[386573167,1758405041893,-196.41844,0.00023343,7]
[386573168,1758405041903,-151.0,0.00023343,7]
[386573169,1758405041912,-151.0,0.00023343,7]
[386573170,1758405041922,-215.923392,0.00023343,7]
[386573171,1758405041931,-151.0,0.00023343,7]
[386573172,1758405041940,-155.596521,0.00023343,7]
[386573173,1758405041950,-155.596521,0.00023343,7]
[386573174,1758405041959,-155.596521,0.00023343,7]
[386573175,1758405041968,-151.0,0.00023343,7]
[386573176,1758405041977,-151.0,0.00023343,7]
[386573177,1758405041986,-151.0,0.00023343,7]
[386573178,1758405041995,-155.596521,0.00023343,7]
[386573179,1758405042004,-151.0,0.00023343,7]
[386573180,1758405042014,-151.0,0.00023343,7]
[386573181,1758405042023,-151.0,0.00023343,7]
[386573182,1758405042032,-151.0,0.00023343,7]
[386573183,1758405042042,-151.0,0.00023343,7]
[386573184,1758405042052,-151.0,0.00023343,7]
[386573185,1758405042063,-151.0,0.00023343,7]
[386573186,1758405042073,-151.0,0.00023343,7]
[386573187,1758405042082,-252.705559,0.00023343,7]
[386573188,1758405042091,-252.705559,0.00023343,7]
[386573189,1758405042102,-151.0,0.00023343,7]
[386573190,1758405042112,-252.705559,0.00023343,7]
[386573191,1758405042121,-151.0,0.00023343,7]
[386573192,1758405042130,-252.705559,0.00023343,7]
[386573193,1758405042139,-151.0,0.00023343,7]
[386573194,1758405042149,-163.73531,0.00023343,7]
[386573195,1758405042159,-163.73531,0.00023343,7]
[386573196,1758405042168,-151.0,0.00023343,7]
[386573197,1758405042177,-163.73531,0.00023343,7]
[386573198,1758405042186,-151.0,0.00023343,7]
[386573199,1758405042196,-163.73531,0.00023343,7]
[386573200,1758405042205,-151.0,0.00023343,7]
[386573201,1758405042214,-151.0,0.00023343,7]
[386573202,1758405042224,-1816.652634,0.00023343,7]
[386573203,1758405042233,-151.0,0.00023343,7]
[386573204,1758405042242,-1816.652634,0.00023343,7]
[386573205,1758405042253,-1816.652634,0.00023343,7]
[386573206,1758405042262,-1816.652634,0.00023343,7]
[386573207,1758405042272,-924.364775,0.00023343,7]
[386573208,1758405042282,-168.509792,0.00023343,7]
[386573209,1758405042291,-924.364775,0.00023343,7]
[386573210,1758405042301,-168.509792,0.00023343,7]
[386573211,1758405042310,-924.364775,0.00023343,7]
[386573212,1758405042320,-168.509792,0.00023343,7]
[386573213,1758405042330,-924.364775,0.00023343,7]
[386573214,1758405042339,-168.509792,0.00023343,7]
[386573215,1758405042348,-151.0,0.00023343,7]
[386573216,1758405042358,-151.0,0.00023343,7]
[386573217,1758405042368,-328.279368,0.00023343,7]
[386573218,1758405042378,-328.279368,0.00023343,7]
[386573220,1758405042387,-328.279368,0.00023343,7]
[386573221,1758405042397,-328.279368,0.00023343,7]
[386573222,1758405042406,-151.0,0.00023343,7]
[386573223,1758405042416,-151.0,0.00023343,7]
[386573224,1758405042425,-1196.206096,0.00023343,7]
[386573225,1758405042435,-151.0,0.00023343,7]
[386573226,1758405042444,-1196.206096,0.00023343,7]
[386573227,1758405042454,-151.0,0.00023343,7]
[386573228,1758405042464,-1196.206096,0.00023343,7]
[386573229,1758405042474,-204.157142,0.00023343,7]
[386573230,1758405042484,-204.157142,0.00023343,7]
[386573231,1758405042494,-1196.206096,0.00023343,7]
[386573233,1758405042503,-204.157142,0.00023343,7]
[386573235,1758405042513,-204.157142,0.00023343,7]
[386573236,1758405042523,-288.659731,0.00023343,7]
[386573237,1758405042533,-1000.0,0.00023347,2]
[386573238,1758405042543,-500.0,0.00023348,5]
[386573239,1758405042553,-61510.9171387,0.00023395,3]
[386573240,1758405042562,-151.0,0.00023395,7]
[386573241,1758405042572,-1196.206096,0.00023395,7]
[386573242,1758405042582,-151.0,0.00023395,7]
[386573243,1758405042591,-1196.206096,0.00023395,7]
[386573244,1758405042601,-1196.206096,0.00023395,7]
[386573245,1758405042610,-204.157142,0.00023395,7]
[386573246,1758405042620,-204.157142,0.00023395,7]
[386573247,1758405042629,-1196.206096,0.00023395,7]
[386573248,1758405042639,-204.157142,0.00023395,7]
[386573249,1758405042648,-204.157142,0.00023395,7]
[386573250,1758405042657,-160.0,0.000234,3]
[386573251,1758405042667,-3019.62027748,0.000234,3]
[386573252,1758405042676,-200.0,0.00023426,2]
[386573253,1758405042686,-2000.0,0.00023426,2]
[386573254,1758405042695,-2000.0,0.00023426,2]
[386573255,1758405042704,-2000.0,0.00023426,2]
[386573256,1758405042713,-2000.0,0.00023426,2]
[386573257,1758405042723,-2000.0,0.00023426,2]
[386573258,1758405042733,-2000.0,0.00023426,2]
[386573259,1758405042743,-2000.0,0.00023426,2]
[386573260,1758405042752,-2000.0,0.00023426,2]
[386573261,1758405042762,-1000.0,0.00023426,2]
[386573262,1758405042772,-1000.0,0.00023426,2]
[386573263,1758405042782,-1000.0,0.00023426,2]
[386573264,1758405042792,-1000.0,0.00023426,2]
[386573265,1758405042801,-200.0,0.00023426,2]
[386573266,1758405042810,-11495.64908059,0.00023429,2]
[386573267,1758405042821,-151.0,0.00023429,7]
[386573268,1758405042830,-151.0,0.00023429,7]
[386573269,1758405042840,-151.0,0.00023429,7]
[386573270,1758405042849,-151.0,0.00023429,7]
[386573271,1758405042859,-213.213456,0.00023429,7]
[386573272,1758405042868,-151.0,0.00023429,7]
[386573273,1758405042878,-163.73531,0.00023429,7]
[386573274,1758405042888,-163.73531,0.00023429,7]
[386573275,1758405042897,-163.73531,0.00023429,7]
[386573276,1758405042907,-205.533855,0.00023429,7]
[386573277,1758405042916,-163.73531,0.00023429,7]
[386573278,1758405042926,-151.0,0.00023429,7]
[386573279,1758405042936,-1816.652634,0.00023429,7]
[386573280,1758405042950,-151.0,0.00023429,7]
[386573281,1758405042960,-1816.652634,0.00023429,7]
[386573282,1758405042969,-1816.652634,0.00023429,7]
[386573283,1758405042982,-1816.652634,0.00023429,7]
[386573284,1758405042991,-924.364775,0.00023429,7]
[386573285,1758405043000,-168.509792,0.00023429,7]
[386573286,1758405043010,-924.364775,0.00023429,7]
[386573287,1758405043019,-168.509792,0.00023429,7]
[386573288,1758405043028,-924.364775,0.00023429,7]
[386573289,1758405043038,-168.509792,0.00023429,7]
[386573290,1758405043047,-924.364775,0.00023429,7]
[386573291,1758405043056,-168.509792,0.00023429,7]
[386573292,1758405043066,-151.0,0.00023429,7]
[386573293,1758405043076,-328.279368,0.00023429,7]
[386573294,1758405043086,-328.279368,0.00023429,7]
[386573295,1758405043095,-328.279368,0.00023429,7]
[386573296,1758405043105,-328.279368,0.00023429,7]
[386573297,1758405043114,-151.0,0.00023429,7]
[386573298,1758405043124,-519.08,0.00023439,2]
[386573299,1758405043133,-151.61,0.00023439,2]
[386573300,1758405043143,-5456.09889691,0.00023439,2]
[386573301,1758405043152,-16358.18841757,0.0002344,2]
[386573303,1758405043208,-53641.81158243,0.0002344,2]
[386573304,1758405043218,-176.70464155,0.0002344,2]
[386573305,1758405043227,-240.02483733,0.0002344,2]
[386573306,1758405043238,-214.0,0.0002344,2]
[386573307,1758405043249,-1000.0,0.0002344,2]
[386573308,1758405043259,-1004.21168962,0.0002344,2]
[386573309,1758405043269,-292.825521,0.0002344,7]
[386573310,1758405043278,-170.8,0.0002344,2]
[386573311,1758405043288,-283.020953,0.0002344,7]
[386573312,1758405043297,-153.795175,0.0002344,7]
[386573313,1758405043307,-151.0,0.0002344,7]
[386573314,1758405043316,-151.0,0.0002344,7]
[386573315,1758405043326,-298.6,0.00023448,15]
[386573316,1758405043336,-671.48,0.00023453,2]
[386573317,1758405043346,-152.0,0.00023492,3]
[386573318,1758405043355,-200.0,0.000235,2]
[386573319,1758405043365,-200.0,0.0002351,7]
[386573320,1758405043375,-2162.94771284,0.0002351,5]
[386573321,1758405043384,-444.0,0.00023562,2]
[386573322,1758405043394,-150.0,0.00023562,2]
[386573323,1758405043403,-637.0,0.00023562,2]
[386573324,1758405043413,-500.0,0.00023562,2]
[386573325,1758405043423,-474.0,0.00023562,2]
[386573326,1758405043433,-1626.0,0.00023562,2]
[386573327,1758405043443,-500.0,0.00023562,2]
[386573328,1758405043453,-150.0,0.00023562,2]
[386573329,1758405043463,-200.0,0.0002361,7]
[386573330,1758405043472,-500.0,0.00023622,5]
[386573331,1758405043481,-848.61,0.000237,2]
[386573332,1758405043491,-500.0,0.000237,2]
[386573333,1758405043501,-500.0,0.000237,2]
[386573334,1758405043510,-500.0,0.000237,2]
[386573335,1758405043520,-500.0,0.000237,2]
[386573336,1758405043531,-500.0,0.000237,2]
[386573337,1758405043541,-500.0,0.000237,2]
[386573338,1758405043551,-500.0,0.000237,2]
[386573339,1758405043560,-500.0,0.000237,2]
[386573340,1758405043569,-500.0,0.000237,2]
[386573341,1758405043579,-500.0,0.000237,2]
[386573342,1758405043588,-500.0,0.000237,2]
[386573343,1758405043598,-500.0,0.000237,2]
[386573344,1758405043607,-500.0,0.000237,2]
[386573345,1758405043617,-500.0,0.000237,2]
[386573346,1758405043626,-500.0,0.000237,2]
[386573347,1758405043635,-500.0,0.000237,2]
[386573348,1758405043645,-500.0,0.000237,2]
[386573349,1758405043654,-500.0,0.000237,2]
[386573350,1758405043664,-500.0,0.000237,2]
[386573351,1758405043673,-500.0,0.000237,2]
[386573352,1758405043683,-500.0,0.000237,2]
[386573353,1758405043692,-500.0,0.000237,2]
[386573354,1758405043701,-500.0,0.000237,2]
[386573355,1758405043711,-500.0,0.000237,2]
[386573356,1758405043720,-500.0,0.000237,2]
[386573357,1758405043729,-500.0,0.000237,2]
[386573359,1758405043739,-500.0,0.000237,2]
[386573360,1758405043749,-500.0,0.000237,2]
[386573361,1758405043758,-500.0,0.000237,2]
[386573362,1758405043768,-500.0,0.000237,2]
[386573363,1758405043777,-500.0,0.000237,2]
[386573364,1758405043787,-500.0,0.000237,2]
[386573365,1758405043796,-500.0,0.000237,2]
[386573366,1758405043806,-500.0,0.000237,2]
[386573367,1758405043816,-500.0,0.000237,2]
[386573368,1758405043826,-500.0,0.000237,2]
[386573369,1758405043835,-500.0,0.000237,2]
[386573370,1758405043845,-500.0,0.000237,2]
[386573371,1758405043855,-500.0,0.000237,2]
[386573372,1758405043864,-500.0,0.000237,2]
[386573373,1758405043873,-500.0,0.000237,2]
[386573374,1758405043883,-500.0,0.000237,2]
[386573375,1758405043892,-500.0,0.000237,2]
[386573376,1758405043903,-500.0,0.000237,2]
[386573377,1758405043913,-500.0,0.000237,2]
[386573378,1758405043923,-500.0,0.000237,2]
[386573379,1758405043932,-500.0,0.000237,2]
[386573380,1758405043942,-500.0,0.000237,2]
[386573381,1758405043951,-500.0,0.000237,2]
[386573382,1758405043961,-500.0,0.000237,2]
[386573383,1758405043970,-500.0,0.000237,2]
[386573384,1758405043981,-913.0,0.000237,2]
[386573385,1758405043991,-151.0,0.000237,7]
[386573386,1758405044001,-1200.0,0.000237,8]
[386573387,1758405044010,-151.0,0.000237,7]
[386573388,1758405044023,-151.0,0.000237,7]
[386573389,1758405044032,-197.347427,0.000237,7]
[386573390,1758405044042,-155.596521,0.000237,7]
[386573391,1758405044052,-155.596521,0.000237,7]
[386573392,1758405044063,-155.596521,0.000237,7]
[386573393,1758405044072,-151.0,0.000237,7]
[386573394,1758405044082,-151.0,0.000237,7]
[386573395,1758405044091,-155.596521,0.000237,7]
[386573396,1758405044101,-151.0,0.000237,7]
[386573397,1758405044110,-151.0,0.000237,7]
[386573398,1758405044119,-221.1098,0.000237,7]
[386573399,1758405044129,-151.0,0.000237,7]
[386573400,1758405044138,-151.0,0.000237,7]
[386573401,1758405044147,-252.705559,0.000237,7]
[386573402,1758405044160,-252.705559,0.000237,7]
[386573403,1758405044170,-252.705559,0.000237,7]
[386573404,1758405044179,-252.705559,0.000237,7]
[386573405,1758405044189,-151.0,0.000237,7]
[386573406,1758405044198,-1196.206096,0.000237,7]
[386573407,1758405044207,-151.0,0.000237,7]
[386573408,1758405044216,-1196.206096,0.000237,7]
[386573409,1758405044226,-204.157142,0.000237,7]
[386573410,1758405044235,-1196.206096,0.000237,7]
[386573411,1758405044244,-204.157142,0.000237,7]
[386573412,1758405044253,-1196.206096,0.000237,7]
[386573413,1758405044263,-204.157142,0.000237,7]
[386573414,1758405044272,-204.157142,0.000237,7]
[386573415,1758405044281,-200.0,0.0002371,7]
[386573416,1758405044291,-671.48,0.00023727,2]
[386573417,1758405044300,-163.76306668,0.00023752,2]
[386573418,1758405044310,-600.0,0.00023754,2]
[386573419,1758405044320,-1392.87,0.00023795,2]
[386573420,1758405044329,-1900.0,0.000238,8]
[386573421,1758405044339,-200.0,0.0002381,7]